bitfinex-derivatives/quotes_BNBF0:USTF0_20250329
["timestamp","ask_amount","ask_price","bid_price","bid_amount"]
[1743225037279,1.22240485,609.51,608.91,0.29618088]
[1743225037480,0.93496296,609.52,608.91,0.29618088]
[1743225037481,1.22240485,609.5,608.91,0.29618088]
[1743225037681,1.22240485,609.49,608.91,0.29618088]
[1743225037982,0.93496296,609.48,608.91,1.14118088]
[1743225038176,0.93496296,609.48,608.92,0.29618088]
[1743225038576,0.93496296,609.47,608.92,0.29618088]
[1743225038979,0.285624,609.98,608.92,0.29618088]
[1743225039181,1.22172473,609.97,608.92,0.29618088]
[1743225039477,1.22172473,609.96,608.92,0.29618088]
[1743225039680,1.22172473,609.95,608.92,0.29618088]
[1743225039878,1.22172473,609.94,608.92,0.29618088]
[1743225040079,1.22172473,609.93,608.92,0.29618088]
[1743225040282,1.22172473,609.92,608.92,0.29618088]
[1743225040482,1.22172473,609.91,608.92,0.29618088]
[1743225040683,1.22172473,609.9,608.92,0.29618088]
[1743225040886,1.22172473,609.89,608.92,0.29618088]
[1743225041184,1.22172473,609.88,608.93,0.29618027]
[1743225041484,1.22172473,609.87,608.94,0.29618027]
[1743225041784,1.22172473,609.86,608.95,0.29618027]
[1743225041984,1.22172473,609.85,608.92,0.29618027]
[1743225042186,1.22172473,609.84,608.93,0.29618027]
[1743225042384,1.22172473,609.83,608.94,0.29618027]
[1743225042585,1.22172473,609.82,608.92,0.29618027]
[1743225042779,2.15523096,609.81,608.93,0.29618027]
[1743225042977,1.22172473,609.8,608.93,0.29618027]
[1743225043183,1.22172473,609.79,608.94,0.29618027]
[1743225043380,2.15523096,609.78,608.92,0.29618027]
[1743225043585,1.22172473,609.77,608.92,0.29618027]
[1743225043781,1.22172473,609.76,608.92,0.29618027]
[1743225043982,1.22172473,609.75,608.92,0.29618027]
[1743225044182,1.22172473,609.74,608.92,0.29618027]
[1743225044383,1.22172473,609.73,608.92,0.29618027]
[1743225044582,1.22172473,609.72,608.92,0.29618027]
[1743225044786,1.22172473,609.71,608.92,0.29618027]
[1743225044986,0.93350623,609.72,608.92,0.29618027]
[1743225044987,1.22172473,609.7,608.92,0.29618027]
[1743225045186,1.22172473,609.69,608.92,0.29618027]
[1743225045388,1.22172473,609.68,608.92,0.29618027]
[1743225045586,1.22172473,609.67,608.92,0.29618027]
[1743225045786,2.15523096,609.66,608.92,0.29618027]
[1743225046087,1.22172473,609.65,608.92,0.29618027]
[1743225046283,1.22172473,609.64,608.91,0.845]
[1743225046488,1.22172473,609.63,608.92,0.29616529]
[1743225046689,1.22172473,609.62,608.92,0.29616529]
[1743225046983,1.22172473,609.61,608.92,0.29616529]
[1743225047183,1.22172473,609.6,608.92,0.29616529]
[1743225047387,2.15523096,609.59,608.92,0.29616529]
[1743225047584,1.22172473,609.58,608.92,0.29616529]
[1743225047783,1.22172473,609.57,608.92,0.29616529]
[1743225048087,0.93350623,609.58,608.93,0.32844497]
[1743225048288,0.93350623,609.58,608.94,0.29616529]
[1743225048489,0.93350623,609.58,608.95,0.32843418]
[1743225048788,0.28559119,610.11,608.96,0.29616529]
[1743225048991,1.2209257,610.1,608.97,0.3284234]
[1743225049189,1.2209257,610.09,608.98,0.29616529]
[1743225049392,1.2209257,610.08,608.98,0.29616529]
[1743225049592,1.2209257,610.07,608.98,0.29616529]
[1743225049792,1.2209257,610.06,608.99,0.32841261]
[1743225049990,1.2209257,610.05,609.0,0.29616529]
[1743225050189,1.2209257,610.04,609.01,0.32840183]
[1743225050389,1.2209257,610.03,609.02,0.29616529]
[1743225050584,1.2209257,610.02,609.03,0.32839104]
[1743225050788,1.2209257,610.01,609.04,0.29616529]
[1743225050984,1.2209257,610.0,609.04,0.62455094]
[1743225051185,1.2209257,609.99,609.05,0.29616529]
[1743225051384,1.2209257,609.98,609.05,0.29616529]
[1743225051591,1.2209257,609.97,609.05,0.29616529]
[1743225051784,1.2209257,609.96,609.05,0.29616529]
[1743225051984,1.2209257,609.95,609.05,0.29616529]
[1743225052188,1.2209257,609.94,609.05,0.29616529]
[1743225052390,1.2209257,609.93,609.05,0.29616529]
[1743225052589,1.2209257,609.92,609.05,0.29616529]
[1743225052790,1.2209257,609.91,609.05,0.29616529]
[1743225052988,1.2209257,609.9,609.05,0.29616529]
[1743225053188,1.2209257,609.89,609.05,0.29616529]
[1743225053387,2.15381361,609.88,609.05,0.775]
[1743225053587,1.2209257,609.87,609.06,0.2960974]
[1743225053787,1.2209257,609.86,609.06,0.2960974]
[1743225053987,1.2209257,609.85,609.06,0.2960974]
[1743225054188,1.2209257,609.84,609.06,0.2960974]
[1743225054391,1.2209257,609.83,609.06,0.2960974]
[1743225054687,1.2209257,609.82,609.06,0.2960974]
[1743225054887,1.2209257,609.81,609.06,0.2960974]
[1743225055091,2.15381361,609.8,609.06,0.2960974]
[1743225055291,1.2209257,609.79,609.06,0.2960974]
[1743225055489,1.2209257,609.78,609.06,0.2960974]
[1743225055794,1.2209257,609.77,609.06,0.2960974]
[1743225055996,1.2209257,609.76,609.06,0.2960974]
[1743225056292,0.93288791,609.78,609.06,0.2960974]
[1743225056293,2.15381361,609.75,609.06,0.2960974]
[1743225056492,1.2209257,609.74,609.06,0.2960974]
[1743225056694,1.2209257,609.73,609.06,0.9500974]
[1743225056895,1.2209257,609.72,609.06,0.9500974]
[1743225057094,0.93288791,609.74,609.07,0.2960974]
[1743225057294,0.93288791,609.71,609.07,0.2960974]
[1743225058394,0.32776676,610.19,609.07,0.2960974]
[1743225058395,0.93288791,609.7,609.07,0.2960974]
[1743225058794,0.32776676,610.19,609.07,0.2960974]
[1743225058990,0.28555838,610.11,609.07,0.2960974]
[1743225059190,2.15020759,610.1,609.07,0.2960974]
[1743225059388,1.21886191,610.09,609.07,0.2960974]
[1743225059591,1.21885489,610.08,609.07,0.2960974]
[1743225059793,2.15020057,610.07,609.07,0.2960974]
[1743225059992,1.21885489,610.06,609.07,0.2960974]
[1743225060188,1.21885489,610.05,609.07,0.2960974]
[1743225060390,1.21885489,610.04,609.07,0.2960974]
[1743225060595,1.21885489,610.03,609.08,0.874]
[1743225060794,2.15020057,610.02,609.09,0.2960974]
[1743225060996,0.93134568,610.02,609.09,0.2960974]
[1743225061196,1.21900952,610.01,609.1,0.686]
[1743225061497,2.1503552,610.0,609.11,0.29606552]
[1743225061795,2.1503552,609.99,609.11,0.29606552]
[1743225061990,1.21900952,609.98,609.11,0.29606552]
[1743225062189,2.1503552,609.97,609.11,0.29606552]
[1743225062392,1.21900952,609.96,609.11,0.29606552]
[1743225062593,1.21900952,609.95,609.11,0.29606552]
[1743225062790,1.21894563,609.94,609.11,0.29606552]
[1743225062995,1.21894563,609.93,609.1,0.686]
[1743225063196,1.21894563,609.92,609.12,0.29606399]
[1743225063394,1.21894563,609.91,609.13,0.29606399]
[1743225063595,1.21894563,609.9,609.13,0.29606399]
[1743225063797,1.21894563,609.89,609.14,0.29606399]
[1743225063991,1.21894563,609.88,609.11,0.29606399]
[1743225064191,1.21894563,609.87,609.11,0.29606399]
[1743225064496,1.21894563,609.86,609.11,0.29606399]
[1743225064698,1.21894563,609.85,609.11,0.29606399]
[1743225064993,1.21894563,609.84,609.11,0.29606399]
[1743225065197,1.21894563,609.83,609.11,0.29606399]
[1743225065394,2.15029131,609.82,609.11,0.29606399]
[1743225065595,1.21894563,609.81,609.11,0.29606399]
[1743225065795,2.15029131,609.8,609.11,0.29606399]
[1743225065998,1.21894563,609.79,609.11,0.29606399]
[1743225066195,2.15029131,609.78,609.11,0.29606399]
[1743225066393,0.93134568,609.78,609.11,0.29606399]
[1743225066595,0.93134568,609.78,609.12,0.871]
[1743225066798,0.93134568,609.78,609.13,0.29606399]
[1743225066999,0.93134568,609.77,609.13,0.29606399]
[1743225067395,0.93134568,609.76,609.13,0.29606399]
[1743225067897,0.93134568,609.75,609.13,0.29606399]
[1743225068398,1.22008749,609.74,609.12,0.871]
[1743225068595,1.22008668,609.73,609.12,0.871]
[1743225068799,0.93134568,609.74,609.12,0.871]
[1743225069201,2.15157589,609.73,609.12,0.871]
[1743225069401,0.93134568,609.73,609.12,0.871]
[1743225069603,0.93134568,609.72,609.13,0.29608611]
[1743225069803,0.93134568,609.72,609.12,0.871]
[1743225069999,0.93134568,609.71,609.12,0.871]
[1743225070200,0.93134568,609.7,609.12,0.871]
[1743225070799,0.28554549,610.12,609.13,0.29608851]
[1743225071004,1.22039002,610.11,609.13,0.29608851]
[1743225071202,1.22039002,610.1,609.13,0.29608851]
[1743225071402,1.22039002,610.09,609.13,0.29608851]
[1743225071603,2.15287971,610.08,609.13,0.29608851]
[1743225071803,1.22039002,610.07,609.13,0.29608851]
[1743225072003,1.22039002,610.06,609.12,0.871]
[1743225072306,1.22039002,610.05,609.12,0.871]
[1743225072503,1.22039002,610.04,609.12,0.871]
[1743225072700,1.22039002,610.03,609.12,0.871]
[1743225072906,1.22039002,610.02,609.12,0.871]
[1743225073106,0.93248969,610.03,609.12,0.871]
[1743225073107,1.22039002,610.01,609.12,0.871]
[1743225073307,2.15287971,610.0,609.12,0.871]
[1743225073507,2.15287971,609.99,609.12,0.871]
[1743225073704,1.22039002,609.98,609.12,0.871]
[1743225073908,0.93248969,609.99,609.12,0.871]
[1743225074105,1.22092138,609.98,609.12,0.871]
[1743225074406,1.22092138,609.97,609.12,0.871]
[1743225074609,1.22092138,609.96,609.12,0.871]
[1743225074804,2.15341107,609.95,609.12,0.871]
[1743225075005,1.22092138,609.94,609.12,0.871]
[1743225075210,1.22092138,609.93,609.12,0.871]
[1743225075407,1.22092138,609.92,609.12,0.871]
[1743225075605,0.93248969,609.93,609.12,0.871]
[1743225075606,1.22092138,609.91,609.12,0.871]
[1743225075804,1.22092138,609.9,609.12,0.871]
[1743225076009,1.22092138,609.89,609.12,0.871]
[1743225076208,1.22092138,609.88,609.12,0.871]
[1743225076414,2.15341107,609.87,609.12,0.871]
[1743225076608,1.22092138,609.86,609.12,0.871]
[1743225076808,1.22092138,609.85,609.12,0.871]
[1743225077010,1.22092138,609.84,609.12,0.871]
[1743225077317,1.22092138,609.83,609.12,0.871]
[1743225077615,1.22092138,609.82,609.12,0.871]
[1743225077816,1.22092138,609.81,609.12,0.871]
[1743225078112,1.22092138,609.8,609.12,0.871]
[1743225078310,1.22092138,609.79,609.12,0.871]
[1743225078521,1.22092138,609.78,609.13,0.755]
[1743225078817,1.22092138,609.77,609.13,0.755]
[1743225079016,2.15341107,609.76,609.13,0.755]
[1743225079218,1.22092138,609.75,609.13,0.755]
[1743225079516,2.15341107,609.74,609.13,0.755]
[1743225079717,1.22092138,609.73,609.13,0.755]
[1743225079919,2.15341107,609.72,609.13,0.755]
[1743225080218,1.22092138,609.71,609.13,0.755]
[1743225080413,1.22092138,609.7,609.13,0.755]
[1743225080613,1.22092138,609.69,609.13,0.755]
[1743225080815,2.15341107,609.68,609.13,0.755]
[1743225081117,1.22092138,609.67,609.13,0.755]
[1743225081318,1.22092138,609.66,609.13,0.755]
[1743225081513,1.22092138,609.65,609.13,0.755]
[1743225081717,1.22092138,609.64,609.13,0.755]
[1743225081919,1.22092138,609.63,609.13,0.755]
[1743225082120,2.15341107,609.62,609.13,0.755]
[1743225082324,1.22092138,609.61,609.13,0.755]
[1743225082618,2.15341107,609.6,609.13,0.755]
[1743225082817,0.93248969,609.6,609.14,0.789]
[1743225083018,2.15597121,609.59,609.14,0.789]
[1743225083218,1.22348152,609.58,609.14,0.789]
[1743225083417,0.93248969,609.59,609.14,0.789]
[1743225083618,0.93248969,609.57,609.14,0.789]
[1743225084219,0.93248969,609.56,609.14,0.789]
[1743225085017,0.93248969,609.55,609.14,0.789]
[1743225085420,0.93248969,609.54,609.14,0.789]
[1743225085824,0.93248969,609.53,609.14,0.789]
[1743225086722,0.2855865,610.02,609.14,0.789]
[1743225086922,1.22360584,610.01,609.14,0.789]
[1743225087121,1.22360584,610.0,609.14,0.789]
[1743225087321,1.22360584,609.99,609.14,0.789]
[1743225087515,1.22360584,609.98,609.14,0.789]
[1743225087720,0.93497811,609.99,609.14,0.789]
[1743225087721,1.22360584,609.97,609.14,0.789]
[1743225087917,1.22360584,609.96,609.14,0.789]
[1743225088120,2.15858395,609.95,609.14,0.789]
[1743225088422,2.15858395,609.94,609.14,0.789]
[1743225088725,1.22360584,609.93,609.14,0.789]
[1743225089024,2.15858395,609.92,609.14,0.789]
[1743225089217,1.22360584,609.91,609.15,0.83]
[1743225089417,1.22360584,609.9,609.15,0.83]
[1743225089622,1.22360584,609.89,609.15,0.83]
[1743225089823,1.22360584,609.88,609.15,1.484]
[1743225090018,1.22360584,609.87,609.15,1.484]
[1743225090225,1.22360584,609.86,609.15,1.484]
[1743225090428,2.15858395,609.85,609.15,1.484]
[1743225090727,1.22360584,609.84,609.15,1.484]
[1743225090927,1.22360584,609.83,609.15,1.484]
[1743225091127,2.15858395,609.82,609.15,1.484]
[1743225091328,1.22360584,609.81,609.15,1.484]
[1743225091627,1.22360584,609.8,609.15,1.484]
[1743225091825,1.22360584,609.79,609.15,1.484]
[1743225092025,1.22360584,609.78,609.15,1.484]
[1743225092226,1.22360584,609.77,609.15,1.484]
[1743225092528,1.22360584,609.76,609.15,1.484]
[1743225092726,1.22360584,609.75,609.15,1.484]
[1743225092920,2.15858395,609.74,609.15,1.484]
[1743225093124,1.22360584,609.73,609.15,1.484]
[1743225093422,1.22360584,609.72,609.15,1.484]
[1743225093625,1.22360584,609.71,609.15,1.484]
[1743225093826,1.22360584,609.7,609.16,0.29611813]
[1743225094026,2.15858395,609.69,609.16,0.29611813]
[1743225094223,1.22360584,609.68,609.16,0.29611813]
[1743225094423,2.15858395,609.67,609.16,0.29611813]
[1743225094629,2.15858395,609.66,609.16,0.29611813]
[1743225094928,1.22360584,609.65,609.16,0.29611813]
[1743225095131,2.15858395,609.64,609.16,0.29611813]
[1743225095325,1.22360584,609.63,609.16,0.29611813]
[1743225095526,1.22360584,609.62,609.16,0.29611813]
[1743225095729,1.22360584,609.61,609.16,0.29611813]
[1743225095924,1.22360584,609.6,609.16,0.29611813]
[1743225096129,2.15858395,609.59,609.16,0.29611813]
[1743225096330,1.22360584,609.58,609.16,0.29611813]
[1743225096529,2.15858395,609.57,609.16,0.29611813]
[1743225096730,1.22360584,609.56,609.16,0.29611813]
[1743225096931,0.93497811,609.56,609.16,0.29611813]
[1743225097631,2.16073101,609.55,609.16,0.29611813]
[1743225097830,0.93497811,609.55,609.16,0.29611813]
[1743225098227,0.93497811,609.54,609.16,0.29611813]
[1743225098633,0.93497811,609.53,609.16,0.29611813]
[1743225099135,0.2855783,610.04,609.16,0.29611813]
[1743225099632,2.16184296,610.03,609.16,0.29611813]
[1743225099826,2.16184296,610.02,609.16,0.29611813]
[1743225100031,1.22546067,610.01,609.16,0.29611813]
[1743225100228,2.16184296,610.0,609.16,0.29611813]
[1743225100429,1.22546067,609.99,609.16,0.29611813]
[1743225100629,2.16184296,609.98,609.16,0.29611813]
[1743225100830,1.22546067,609.97,609.16,0.29611813]
[1743225101031,0.93638229,609.98,609.16,0.29611813]
[1743225101032,2.16184296,609.96,609.16,0.29611813]
[1743225101333,1.22546067,609.95,609.16,0.29611813]
[1743225101534,1.22546067,609.94,609.16,0.29611813]
[1743225101730,2.16184296,609.93,609.16,0.29611813]
[1743225101934,1.22546067,609.92,609.15,2.386]
[1743225102233,1.22546067,609.91,609.15,2.386]
[1743225102433,1.22546067,609.9,609.15,2.386]
[1743225102631,1.22546067,609.89,609.15,2.386]
[1743225102830,1.22546067,609.88,609.15,2.386]
[1743225103033,1.22546067,609.87,609.15,2.386]
[1743225103232,0.93638229,609.88,609.15,2.386]
[1743225103233,1.22546067,609.86,609.15,2.386]
[1743225103434,1.22546067,609.85,609.15,2.386]
[1743225103731,2.16184296,609.84,609.15,2.386]
[1743225103935,1.22546067,609.83,609.15,2.386]
[1743225104135,1.22546067,609.82,609.15,2.386]
[1743225104331,1.22546067,609.81,609.15,2.386]
[1743225104531,1.22546067,609.8,609.15,2.386]
[1743225104729,1.22546067,609.79,609.15,2.386]
[1743225104931,1.22546067,609.78,609.15,2.386]
[1743225105130,0.93638229,609.81,609.15,2.386]
[1743225105430,0.93638229,609.77,609.15,2.386]
[1743225105637,1.22569242,609.76,609.15,2.386]
[1743225105837,1.22569242,609.75,609.15,2.386]
[1743225106034,2.16207471,609.74,609.15,2.386]
[1743225106230,1.22569242,609.73,609.15,2.386]
[1743225106435,1.22569242,609.72,609.15,2.386]
[1743225106736,2.16207471,609.71,609.15,2.386]
[1743225106937,1.22569242,609.7,609.15,2.386]
[1743225107137,1.22569242,609.69,609.15,2.386]
[1743225107337,1.22569242,609.68,609.15,2.386]
[1743225107537,1.22569242,609.67,609.15,2.386]
[1743225107738,1.22569242,609.66,609.15,2.386]
[1743225107931,2.16207471,609.65,609.15,2.386]
[1743225108137,1.22569242,609.64,609.15,2.386]
[1743225108341,1.22569242,609.63,609.15,2.386]
[1743225108639,1.22569242,609.62,609.15,2.386]
[1743225108836,1.22569242,609.61,609.15,2.386]
[1743225109036,1.22600119,609.6,609.15,2.386]
[1743225109236,0.93638229,609.62,609.15,2.386]
[1743225109237,1.22600119,609.59,609.15,2.386]
[1743225109432,2.16238348,609.58,609.15,2.386]
[1743225109636,1.22600119,609.57,609.15,2.386]
[1743225109832,1.22600119,609.56,609.15,2.386]
[1743225110036,0.93638229,609.58,609.15,0.654]
[1743225110037,1.22600119,609.55,609.15,0.654]
[1743225110233,1.22600119,609.54,609.15,0.654]
[1743225110535,1.22600119,609.53,609.15,0.654]
[1743225110735,0.93638229,609.52,609.15,0.654]
[1743225111339,0.93638229,609.51,609.15,0.654]
[1743225111839,0.93638229,609.5,609.14,0.789]
[1743225112338,0.93638229,609.49,609.14,0.789]
[1743225112634,0.2855865,610.04,609.14,0.789]
[1743225112834,1.22591364,610.03,609.13,0.978]
[1743225113139,2.16265501,610.02,609.13,0.978]
[1743225113340,1.22591364,610.01,609.13,0.978]
[1743225113537,1.22591364,610.0,609.13,0.978]
[1743225113736,1.22591364,609.99,609.14,0.942]
[1743225113938,1.22591364,609.98,609.14,0.942]
[1743225114135,1.22591364,609.97,609.14,0.942]
[1743225114339,2.16265501,609.96,609.14,0.942]
[1743225114537,1.22591364,609.95,609.14,0.942]
[1743225114843,1.22591364,609.94,609.14,0.942]
[1743225115043,1.22591364,609.93,609.14,0.942]
[1743225115241,1.22591364,609.92,609.15,0.639]
[1743225115442,1.22591364,609.91,609.15,0.639]
[1743225115642,1.22591364,609.9,609.15,1.352]
[1743225115838,1.22591364,609.89,609.15,1.352]
[1743225116042,1.22591364,609.88,609.15,1.352]
[1743225116237,1.22591364,609.87,609.15,1.352]
[1743225116444,1.22591364,609.86,609.15,1.352]
[1743225116738,2.16316557,609.85,609.15,1.352]
[1743225116942,1.2264242,609.84,609.15,1.352]
[1743225117242,1.2264242,609.83,609.15,1.352]
[1743225117444,1.2264242,609.82,609.15,1.352]
[1743225117640,1.2264242,609.81,609.15,1.352]
[1743225117841,1.2264242,609.8,609.15,1.352]
[1743225118042,1.2264242,609.79,609.15,1.352]
[1743225118237,2.16316557,609.78,609.15,1.352]
[1743225118443,1.2264242,609.77,609.15,1.352]
[1743225118636,1.2264242,609.76,609.15,1.352]
[1743225118838,1.2264242,609.75,609.15,1.352]
[1743225119037,1.2264242,609.74,609.15,1.352]
[1743225119236,1.2264242,609.73,609.15,1.352]
[1743225119438,1.2264242,609.72,609.15,1.352]
[1743225119638,1.2264242,609.71,609.15,1.352]
[1743225119839,1.2264242,609.7,609.15,1.352]
[1743225120037,1.2264242,609.69,609.15,1.352]
[1743225120240,2.16316557,609.68,609.15,1.352]
[1743225120438,1.2264242,609.67,609.15,1.352]
[1743225120739,1.22636463,609.66,609.15,1.352]
[1743225120944,1.22636463,609.65,609.15,1.352]
[1743225121145,1.22636463,609.64,609.15,1.352]
[1743225121444,1.22636463,609.63,609.15,1.352]
[1743225121644,1.22636463,609.62,609.15,1.352]
[1743225121944,1.22636463,609.61,609.15,1.352]
[1743225122244,1.22636463,609.6,609.15,1.352]
[1743225122441,1.22636463,609.59,609.15,1.352]
[1743225122647,1.22636463,609.58,609.15,1.352]
[1743225122846,2.163106,609.57,609.16,0.29611863]
[1743225123042,2.163106,609.57,609.15,1.352]
[1743225123043,1.22636463,609.56,609.17,0.29611863]
[1743225123242,2.163106,609.55,609.16,0.29611863]
[1743225123439,2.163106,609.54,609.17,0.29611863]
[1743225123743,1.22636463,609.53,609.18,0.29611863]
[1743225124039,1.22636463,609.52,609.15,1.352]
[1743225124246,0.93674137,609.52,609.15,1.352]
[1743225124547,0.93674137,609.51,609.15,1.352]
[1743225124943,0.93674137,609.5,609.15,1.352]
[1743225125347,0.93674137,609.49,609.15,1.352]
[1743225126045,0.93674137,609.48,609.15,1.352]
[1743225126439,0.93674137,609.48,609.16,0.29611725]
[1743225126843,0.28559001,610.04,609.16,0.29611725]
[1743225127144,1.22721996,610.03,609.16,0.29611725]
[1743225127339,0.93775251,610.03,609.16,0.29611725]
[1743225127545,1.22717602,610.02,609.16,0.29611725]
[1743225127740,1.22717602,610.01,609.16,0.29611725]
[1743225127945,1.22717602,610.0,609.16,0.29611725]
[1743225128146,1.22717602,609.99,609.16,0.29611725]
[1743225128341,1.22717602,609.98,609.16,0.29611725]
[1743225128546,1.22717602,609.97,609.16,0.29611725]
[1743225128841,1.22717602,609.96,609.16,0.29611725]
[1743225129041,2.16492853,609.95,609.16,0.29611725]
[1743225129244,1.22717602,609.94,609.16,0.29611725]
[1743225129445,1.22717602,609.93,609.16,0.29611725]
[1743225129645,1.22717602,609.92,609.16,0.29611725]
[1743225129842,0.93775251,609.95,609.16,0.29611725]
[1743225129843,1.22717602,609.91,609.16,0.29611725]
[1743225130046,2.16492853,609.9,609.16,0.29611725]
[1743225130246,1.22717602,609.89,609.16,0.29611725]
[1743225130448,2.16492853,609.88,609.16,0.29611725]
[1743225130748,2.16492853,609.87,609.16,0.29611725]
[1743225130942,1.22717602,609.86,609.16,0.29611725]
[1743225131142,1.22717602,609.85,609.16,0.29611725]
[1743225131342,1.22717602,609.84,609.16,0.29611725]
[1743225131547,1.22798568,609.83,609.16,0.29611725]
[1743225131748,1.22798568,609.82,609.16,1.00611725]
[1743225131949,1.22798568,609.81,609.16,0.71]
[1743225132151,0.93775251,609.82,609.16,0.71]
[1743225132152,1.22798568,609.8,609.16,0.71]
[1743225132444,2.16573819,609.79,609.17,0.29611783]
[1743225132649,1.22798568,609.78,609.17,0.29611783]
[1743225132851,1.22798568,609.77,609.17,0.29611783]
[1743225133051,1.22798568,609.76,609.17,0.29611783]
[1743225133251,1.22798568,609.75,609.17,0.29611783]
[1743225133451,1.22798568,609.74,609.17,0.29611783]
[1743225133651,1.22798568,609.73,609.17,0.29611783]
[1743225133849,1.22798568,609.72,609.17,0.29611783]
[1743225134047,2.16573819,609.71,609.17,0.29611783]
[1743225134352,1.22798568,609.7,609.17,0.29611783]
[1743225134647,2.16573819,609.69,609.17,0.29611783]
[1743225134852,1.22798568,609.68,609.17,0.29611783]
[1743225135051,1.22798568,609.67,609.17,0.29611783]
[1743225135253,1.22798568,609.66,609.17,0.29611783]
[1743225135454,1.22798568,609.65,609.17,0.29611783]
[1743225135653,1.22798568,609.64,609.17,0.29611783]
[1743225135853,2.16573819,609.63,609.17,0.29611783]
[1743225136153,1.22798568,609.62,609.17,0.29611783]
[1743225136454,2.16573819,609.61,609.17,0.29611783]
[1743225136753,2.16573819,609.6,609.16,0.71]
[1743225136949,1.22798568,609.59,609.17,0.29610963]
[1743225137147,1.22798568,609.58,609.17,0.29610963]
[1743225137352,1.22798568,609.57,609.17,0.29610963]
[1743225137548,1.22798568,609.56,609.17,0.29610963]
[1743225137752,1.22798568,609.55,609.17,0.29610963]
[1743225138053,2.16573819,609.54,609.17,0.29610963]
[1743225138248,1.22798568,609.53,609.17,0.29610963]
[1743225138448,2.16573819,609.52,609.16,0.71]
[1743225138653,1.22798568,609.51,609.17,0.29611128]
[1743225138854,1.22798568,609.5,609.17,0.29611128]
[1743225139056,2.16590301,609.49,609.16,0.71]
[1743225139252,1.2281505,609.48,609.16,0.71]
[1743225139454,1.2281505,609.47,609.16,0.71]
[1743225139655,1.2281505,609.46,609.16,0.71]
[1743225139851,1.2281505,609.45,609.16,0.71]
[1743225140054,2.16590301,609.44,609.16,0.71]
[1743225140257,1.2281505,609.43,609.16,0.71]
[1743225140453,2.16590301,609.42,609.16,0.71]
[1743225140657,2.16590301,609.41,609.16,0.71]
[1743225140859,1.2281505,609.4,609.16,0.71]
[1743225141056,1.2281505,609.39,609.16,0.71]
[1743225141359,0.93775251,609.39,609.16,0.71]
[1743225141756,0.93775251,609.38,609.16,0.71]
[1743225142158,0.93775251,609.37,609.16,0.71]
[1743225142652,0.28562049,609.95,609.16,0.71]
[1743225142653,0.93775251,609.36,609.16,0.71]
[1743225143362,0.93775251,609.35,609.16,0.71]
[1743225143659,0.28562049,609.95,609.16,0.71]
[1743225143853,1.22662003,609.94,609.16,0.71]
[1743225144055,2.16413021,609.93,609.16,0.71]
[1743225144259,1.22662003,609.92,609.16,0.71]
[1743225144455,2.16413021,609.91,609.16,0.71]
[1743225144654,2.16413021,609.9,609.16,0.71]
[1743225144852,1.22662003,609.89,609.16,0.71]
[1743225145056,1.22662003,609.88,609.16,0.71]
[1743225145254,2.16413021,609.87,609.16,0.71]
[1743225145463,2.16413021,609.86,609.16,0.71]
[1743225145658,1.22662003,609.85,609.16,0.71]
[1743225145864,2.16413021,609.84,609.17,0.29614955]
[1743225146063,1.22662003,609.83,609.17,0.29614955]
[1743225146364,2.16413021,609.82,609.17,0.29614955]
[1743225146569,1.22662003,609.81,609.17,0.97814955]
[1743225146765,1.22662003,609.8,609.18,0.29614955]
[1743225146980,1.22662003,609.79,609.17,0.682]
[1743225147166,1.22662003,609.78,609.17,0.682]
[1743225147364,1.22662003,609.77,609.17,0.682]
[1743225147565,1.22662003,609.76,609.17,0.682]
[1743225147862,2.16413021,609.75,609.18,0.29606844]
[1743225148166,1.22662003,609.74,609.18,0.29606844]
[1743225148368,1.22662003,609.73,609.18,0.29606844]
[1743225148662,1.22662003,609.72,609.18,0.29606844]
[1743225148866,1.22662003,609.71,609.18,0.29606844]
[1743225149167,2.16413021,609.7,609.18,0.29606844]
[1743225149364,1.22662003,609.69,609.18,0.29606844]
[1743225149565,0.93751018,609.69,609.18,0.29606844]
[1743225150258,0.93751018,609.68,609.18,0.29606844]
[1743225150458,0.32776676,610.19,609.18,0.29606844]
[1743225150766,1.22665829,610.18,609.18,0.29606844]
[1743225150966,2.1638845,610.17,609.18,0.29606844]
[1743225151166,1.22665829,610.16,609.18,0.29606844]
[1743225151465,0.32776676,610.19,609.18,0.29606844]
[1743225151466,2.1638845,610.15,609.18,0.29606844]
[1743225151660,2.1638845,610.14,609.18,0.29606844]